{"text_format":"1","workbook":"xlsx","n_sheets":3,"sheets":["Supplier DOPC","Sheet1","Sheet2"],"not_rendered":{"charts":0,"images":5,"macros":1,"external_links":0,"defined_names":1,"comments":0,"pivot_tables":0},"unopened":[],"bounds":{"document_bytes":16777216,"sheet_cells":100000,"rows_first":2000,"rows_last":500,"rows_between":2000,"halvings":0,"cell_chars":16384,"cell_head_chars":4096},"cells_cut":0,"cells_raw":0,"read":"whole","date_system":"1900"}

{"sheet":"Supplier DOPC","index":0,"n_rows":132,"n_cols":10,"rows_kept":132,"cut":false,"hidden":false,"merged":[[37,1,37,3],[38,4,38,7],[4,7,16,10],[25,8,25,10],[20,4,20,7],[62,7,62,10],[60,7,60,10],[47,2,47,7],[35,1,35,3],[27,4,27,7],[46,2,46,7],[28,1,28,3],[31,1,31,3],[32,1,32,3],[33,1,33,3],[29,1,29,3],[61,7,61,10],[49,2,50,10],[37,8,37,10],[38,8,38,10],[28,8,28,10],[29,8,29,10],[31,8,31,10],[22,1,22,3],[23,1,23,3],[24,1,24,3],[26,1,26,3],[27,1,27,3],[25,1,25,3],[36,8,36,10],[25,4,25,7],[26,4,26,7],[26,8,26,10],[23,8,23,10],[23,4,23,7],[52,9,52,10],[48,2,48,7],[32,4,32,7],[33,4,33,7],[34,4,34,7],[35,8,35,10],[32,8,32,10],[45,2,45,7],[40,1,42,10],[33,8,33,10],[36,1,36,3],[35,4,35,7],[36,4,36,7],[39,1,39,3],[39,4,39,7],[39,8,39,10],[3,1,3,10],[24,8,24,10],[20,1,20,3],[20,8,20,10],[21,1,21,3],[21,4,21,7],[21,8,21,10],[19,1,19,10],[22,4,22,7],[10,4,10,5],[14,3,15,6],[12,4,13,6],[17,4,17,7],[24,4,24,7],[1,9,1,10],[56,1,59,10],[30,4,30,7],[30,8,30,10],[30,1,30,3],[22,8,22,10],[27,8,27,10],[37,4,37,7],[38,1,38,3],[28,4,28,7],[29,4,29,7],[31,4,31,7],[34,1,34,3],[6,3,6,5],[34,8,34,10],[8,3,8,6]]}
[]
[null,null,null,null,null,null,null,null,null,"DOC Ref : 01DOC25PPE"]
[]
[null,"Declaration of Product  Conformity"]
[]
[]
[null,"Department:",null,"T34 Cook and Dine"]
[]
[null,"Supplier Name : ",null,"JVS EXPORT"]
[]
[null,"Intended buying season: ",null,null,"Autumn/ Winter 2025"]
[]
[null,"Product stroke number(s): ",null,null,"2122B"]
[]
[null,"Product  name(s): ",null,"SINGLE OVEN GLOVE"]
[]
[]
[null,"Select product type:",null,null,"Oven Glove"]
[]
[null,"Please use a separate line to list each Declaration of compliance or test certificate which supports this Summary of Conformity."]
[null,"Applicable Standards",null,null,"Test certificate numbers/Declarations which support compliance ",null,null,null,"Test house and date "]
[null,"BS 6526:1998",null,null,"CH:TX:1542054701-2",null,null,null,"SGS 07-04-2025"]
[null,"EN 407:2020 (6.3,6.8)",null,null,"CH:TX:1542054701-2",null,null,null,"SGS 07-04-2025"]
[null,"EN ISO 21420:2020/A1:2024",null,null,"CH:TX:1542054701-2",null,null,null,"SGS 07-04-2025"]
[null,"ISO 3071: 2020",null,null,"CH:TX:1542054701-2",null,null,null,"SGS 07-04-2025"]
[null,"ISO 14362-1:2017",null,null,"CH:TX:1542054701-2",null,null,null,"SGS 07-04-2025"]
[null,"ISO/TS 16190:2021",null,null,"CH:TX:1542054701-2",null,null,null,"SGS 07-04-2025"]
[]
[]
[]
[]
[]
[]
[]
[]
[null,"Other Standards",null,null,"Test certificate numbers/Declarations which support compliance ",null,null,null,"Test house and date "]
[]
[]
[]
[]
[null,"I hereby declare that the item(s) as described are in conformity with the provisions of Module B of the Regulation (EU) 2016/425 Personal Protective Equipment and the the nationals standard transposing harmonized standard (s) and is identical to the PPE which is the subject of EU certification of conformity issued by SGS UK Ltd, Unit 202B, Worle Parkway, Weston-Super-Mare, BS22 6WA, UK. Notified body No. 0210"]
[]
[]
[]
[]
[null,"Name:","Rajeshwari. M"]
[null,"Date:","2025-05-16"]
[null,"Position:","Merchant"]
[null,"Company:","JVS EXPORT"]
[null,"Address:","9/205 Madurai Natham NH785, Manthikulam , Madurai - 625 014"]
[]
[]
[null,null,null,null,null,"For and on behalf of Marks & Spencer",null,null,null,"(M&S USE ONLY)"]
[]
[null,"This Declaration of Conformity is issued under the sole responsibility of Marks & Spencer."]
[]
[null,"I hereby declare that the item(s) as described above conform to The General Product Safety Directive (GPSD) Directive 2001/95/EC.                                                                                                                                                                                                                               A complete technical file is maintained as required by the appropriate European Directive; principally the Low Voltage Directive 2014/35/EU."]
[]
[]
[]
[null,null,null,null,null,null,"Name:"]
[null,null,null,null,null,null,"Position:"]
[null,null,null,null,null,null,"Date:"]
[]
[]
[]
[null,null,"A complete technical file has been provided by the supplier named above and is maintained in PLM"]
[]
[]
[]
[]
[]
[]
[]
[]
[]
[]
[]
[]
[]
[]
[]
[]
[]
[]
[]
[]
[]
[]
[]
[]
[]
[]
[]
[]
[]
[]
[]
[]
[]
[]
[]
[]
[]
[]
[]
[]
[]
[]
[]
[]
[]
[]
[]
[null,"Depts",null,null,"Season",null,null,"Prod type"]
[null,"Select here",null,null,"Select here",null,null,"Select Product type here"]
[null,"T34 Cook and Dine",null,null,"Spring/Summer 2018",null,null,"Oven Glove"]
[null,null,null,null,"Autumn/Winter 2018",null,null,"Gauntlet"]
[null,null,null,null,"Spring/ Summer 2019"]
[null,null,null,null,"Autumn/ Winter 2019"]
[null,null,null,null,"Spring/ Summer 2020"]
[null,null,null,null,"Autumn/ Winter 2020"]
[null,null,null,null,"Spring/ Summer 2021"]
[null,null,null,null,"Autumn/ Winter 2021"]
[null,null,null,null,"Spring/ Summer 2022"]
[null,null,null,null,"Autumn/ Winter 2022"]
[null,null,null,null,"Spring/ Summer 2023"]
[null,null,null,null,"Autumn/ Winter 2023"]
[null,null,null,null,"Spring/ Summer 2024"]
[null,null,null,null,"Autumn/ Winter 2024"]
[null,null,null,null,"Spring/ Summer 2025"]
[null,null,null,null,"Autumn/ Winter 2025"]

{"sheet":"Sheet1","index":1,"n_rows":11,"n_cols":20,"rows_kept":11,"cut":false,"hidden":false,"merged":[]}
[{"$f":"'Supplier DOPC'!B7","v":"Department:"},{"$f":"'Supplier DOPC'!B9","v":"Supplier Name : "},{"$f":"'Supplier DOPC'!B11","v":"Intended buying season: "},{"$f":"'Supplier DOPC'!B13","v":"Product stroke number(s): "},{"$f":"'Supplier DOPC'!B15","v":"Product  name(s): "},{"$f":"'Supplier DOPC'!B18","v":"Select product type:"},{"$f":"'Supplier DOPC'!B21","v":"Applicable Standards"},{"$f":"'Supplier DOPC'!E21","v":"Test certificate numbers/Declarations which support compliance "},{"$f":"'Supplier DOPC'!I21","v":"Test house and date "},{"$f":"'Supplier DOPC'!B36","v":"Other Standards"},{"$f":"'Supplier DOPC'!E36","v":"Test certificate numbers/Declarations which support compliance "},{"$f":"'Supplier DOPC'!I36","v":"Test house and date "},{"$f":"'Supplier DOPC'!B46","v":"Name:"},{"$f":"'Supplier DOPC'!B47","v":"Date:"},{"$f":"'Supplier DOPC'!B48","v":"Position:"},{"$f":"'Supplier DOPC'!B49","v":"Company:"},{"$f":"'Supplier DOPC'!B50","v":"Address:"},{"$f":"'Supplier DOPC'!G61","v":"Name:"},{"$f":"'Supplier DOPC'!G62","v":"Position:"},{"$f":"'Supplier DOPC'!G63","v":"Date:"}]
[{"$f":"'Supplier DOPC'!D7","v":"T34 Cook and Dine"},{"$f":"'Supplier DOPC'!D9","v":"JVS EXPORT"},{"$f":"'Supplier DOPC'!E11","v":"Autumn/ Winter 2025"},{"$f":"'Supplier DOPC'!E13","v":"2122B"},{"$f":"'Supplier DOPC'!D15","v":"SINGLE OVEN GLOVE"},{"$f":"'Supplier DOPC'!E18","v":"Oven Glove"},{"$f":"'Supplier DOPC'!B22","v":"BS 6526:1998"},{"$f":"'Supplier DOPC'!E22","v":"CH:TX:1542054701-2"},{"$f":"'Supplier DOPC'!I22","v":"SGS 07-04-2025"},{"$f":"'Supplier DOPC'!B37","v":0},{"$f":"'Supplier DOPC'!E37","v":0},{"$f":"'Supplier DOPC'!I37","v":0},{"$f":"'Supplier DOPC'!C46","v":"Rajeshwari. M"},{"$f":"'Supplier DOPC'!C47","v":45793},{"$f":"'Supplier DOPC'!C48","v":"Merchant"},{"$f":"'Supplier DOPC'!C49","v":"JVS EXPORT"},{"$f":"'Supplier DOPC'!C50","v":"9/205 Madurai Natham NH785, Manthikulam , Madurai - 625 014"},{"$f":"'Supplier DOPC'!H61","v":0},{"$f":"'Supplier DOPC'!H62","v":0},{"$f":"'Supplier DOPC'!H63","v":0}]
[null,null,null,null,null,null,{"$f":"'Supplier DOPC'!B23","v":"EN 407:2020 (6.3,6.8)"},{"$f":"'Supplier DOPC'!E23","v":"CH:TX:1542054701-2"},{"$f":"'Supplier DOPC'!I23","v":"SGS 07-04-2025"},{"$f":"'Supplier DOPC'!B38","v":0},{"$f":"'Supplier DOPC'!E38","v":0},{"$f":"'Supplier DOPC'!I38","v":0}]
[null,null,null,null,null,null,{"$f":"'Supplier DOPC'!B24","v":"EN ISO 21420:2020/A1:2024"},{"$f":"'Supplier DOPC'!E24","v":"CH:TX:1542054701-2"},{"$f":"'Supplier DOPC'!I24","v":"SGS 07-04-2025"},{"$f":"'Supplier DOPC'!#REF!","v":{"$error":"#REF!"}},{"$f":"'Supplier DOPC'!#REF!","v":{"$error":"#REF!"}},{"$f":"'Supplier DOPC'!#REF!","v":{"$error":"#REF!"}}]
[null,null,null,null,null,null,{"$f":"'Supplier DOPC'!B25","v":"ISO 3071: 2020"},{"$f":"'Supplier DOPC'!E25","v":"CH:TX:1542054701-2"},{"$f":"'Supplier DOPC'!I25","v":"SGS 07-04-2025"},{"$f":"'Supplier DOPC'!#REF!","v":{"$error":"#REF!"}},{"$f":"'Supplier DOPC'!#REF!","v":{"$error":"#REF!"}},{"$f":"'Supplier DOPC'!#REF!","v":{"$error":"#REF!"}}]
[null,null,null,null,null,null,{"$f":"'Supplier DOPC'!B26","v":"ISO 14362-1:2017"},{"$f":"'Supplier DOPC'!E26","v":"CH:TX:1542054701-2"},{"$f":"'Supplier DOPC'!I26","v":"SGS 07-04-2025"},{"$f":"'Supplier DOPC'!#REF!","v":{"$error":"#REF!"}},{"$f":"'Supplier DOPC'!#REF!","v":{"$error":"#REF!"}},{"$f":"'Supplier DOPC'!#REF!","v":{"$error":"#REF!"}}]
[null,null,null,null,null,null,{"$f":"'Supplier DOPC'!B27","v":"ISO/TS 16190:2021"},{"$f":"'Supplier DOPC'!E27","v":"CH:TX:1542054701-2"},{"$f":"'Supplier DOPC'!I27","v":"SGS 07-04-2025"},{"$f":"'Supplier DOPC'!#REF!","v":{"$error":"#REF!"}},{"$f":"'Supplier DOPC'!#REF!","v":{"$error":"#REF!"}},{"$f":"'Supplier DOPC'!#REF!","v":{"$error":"#REF!"}}]
[null,null,null,null,null,null,{"$f":"'Supplier DOPC'!B28","v":0},{"$f":"'Supplier DOPC'!E28","v":0},{"$f":"'Supplier DOPC'!I28","v":0}]
[null,null,null,null,null,null,{"$f":"'Supplier DOPC'!B29","v":0},{"$f":"'Supplier DOPC'!E29","v":0},{"$f":"'Supplier DOPC'!I29","v":0}]
[null,null,null,null,null,null,{"$f":"'Supplier DOPC'!B30","v":0},{"$f":"'Supplier DOPC'!E30","v":0},{"$f":"'Supplier DOPC'!I30","v":0}]
[null,null,null,null,null,null,{"$f":"'Supplier DOPC'!B32","v":0}]

{"sheet":"Sheet2","index":2,"n_rows":0,"n_cols":0,"rows_kept":0,"cut":false,"hidden":false,"merged":[]}